[Event "LEM Niedersachsen-A-Open 2025"]
[Site "Verden"]
[Date "2025.01.03"]
[Round "4.34"]
[White "Buecklers, Martin"]
[Black "Lehmkuhl, Stefan"]
[Result "*"]
[ECO "B80"]
[WhiteElo "1859"]
[BlackElo "1874"]
[Annotator "NA RC"]
[PlyCount "122"]
[EventDate "2024.12.27"]
[EventType "swiss"]
[EventCountry "GER"]
[SourceTitle "playchess.com"]
[Source "ChessBase"]
[SourceQuality "1"]
[TimeControl "40/5400+30:1800+30"]

1. Nf3 {[%emt 0:00:03]} d6 {[%emt 1:31:00]} 2. e4 {[%emt 0:00:44]} Nf6 {[%emt 0:01:00]} 3. Nc3 {[%emt 0:00:06]} c5 {[%emt 0:00:59]} 4. g3 {[%emt 0:00:14]} Nc6 {[%emt 0:02:45]} 5. Bg2 {[%emt 0:00:45]} e6 {[%emt 0:00:59]} 6. d4 {[%emt 0:01:56]} cxd4 {[%emt 0:01:07]} 7. Nxd4 {[%emt 0:00:05]} Nxd4 {[%emt 0:02:28]} 8. Qxd4 {[%emt 0:00:11]} Be7 {[%emt 0:01:02]} 9. Qa4+ {[%emt 0:05:18]} Nd7 {[%emt 0:03:38]} 10. Be3 {[%emt 0:03:36]} O-O {[%emt 0:00:56]} 11. Rd1 {[%emt 0:01:43]} Nb6 {[%emt 0:02:23]} 12. Qb3 {[%emt 0:00:49]} Bd7 {[%emt 0:03:30]} 13. O-O {[%emt 0:02:08]} Qc7 {[%emt 0:00:00]} 14. Bxb6 {[%emt 0:09:32]} axb6 {[%emt 0:00:00]} 15. Rd4 {[%emt 0:13:08]} Rfc8 {[%emt 0:00:00]} 16. Rfd1 {[%emt 0:01:07]} Bc6 {[%emt 0:00:00]} 17. a3 {[%emt 0:07:48]} h6 {[%emt 0:00:00]} 18. R1d2 {[%emt 0:02:19]} Ra5 {[%emt 0:00:00]} 19. Bf1 {[%emt 0:07:18]} Bg5 {[%emt 0:00:00]} 20. f4 {[%emt 0:01:52]} Be7 {[%emt 0:00:00]} 21. R4d3 {[%emt 0:05:17]} Bf6 {[%emt 0:00:00]} 22. Bg2 {[%emt 0:01:37]} Be7 {[%emt 0:00:00]} 23. h3 {[%emt 0:01:08]} Rc5 {[%emt 0:00:00]} 24. Kh2 {[%emt 0:04:12]} b5 {[%emt 0:00:00]} 25. Ne2 {[%emt 0:03:08]} Qb6 {[%emt 0:00:00]} 26. c3 {[%emt 0:01:51]} Qa6 {[%emt 0:00:00]} 27. Qd1 {[%emt 0:01:25]} Qa4 {[%emt 0:07:30]} 28. Qh1 {[%emt 0:03:59]} Qa8 {[%emt 0:00:00]} 29. Nd4 {[%emt 0:04:42]} Be8 {[%emt 0:00:00]} 30. e5 {[%emt 0:04:08]} d5 {[%emt 0:09:00]} 31. Nf3 {[%emt 0:00:47]} R5c7 {[%emt 0:00:00]} 32. Rd1 {[%emt 0:00:51]} Rc4 {[%emt 0:00:00]} 33. Nd2 {[%emt 0:00:47]} R4c7 {[%emt 0:00:00]} 34. Nf3 {[%emt 0:00:10]} Rc4 {[%emt 0:00:00]} 35. Nd4 {[%emt 0:00:05]} Qa6 {[%emt 0:00:00]} 36. h4 {[%emt 0:00:59]} R4c7 {[%emt 0:00:00]} 37. Bh3 {[%emt 0:00:55]} Bc5 {[%emt 0:00:00]} 38. Qf3 {[%emt 0:02:17]} Bxd4 {[%emt 0:00:00]} 39. Rxd4 {[%emt 0:00:20]} Rc4 {[%emt 0:00:00]} 40. Bf1 {[%emt 0:01:11]} Rxd4 {[%emt 0:00:00]} 41. Rxd4 {[%emt 0:30:08]} Qa7 {[%emt 0:02:01]} 42. Rb4 {[%emt 0:10:51]} Rc5 {[%emt 0:04:37]} 43. Qe3 {[%emt 0:00:00]} b6 {[%emt 0:00:08]} 44. Qf3 {[%emt 0:01:00]} Qe7 {[%emt 0:03:14]} 45. Rd4 {[%emt 0:00:00]} g6 {[%emt 0:03:37]} 46. Bh3 {[%emt 0:00:00]} Rc4 {[%emt 0:00:00]} 47. Qe3 {[%emt 0:00:00]} Qc7 {[%emt 0:00:00]} 48. Bf1 {[%emt 0:00:00]} Rxd4 {[%emt 0:00:00]} 49. Qxd4 {[%emt 0:00:00]} Qc5 {[%emt 0:00:00]} 50. b4 {[%emt 0:00:00]} Qxd4 {[%emt 0:00:00]} 51. cxd4 {[%emt 0:00:00]} h5 {[%emt 0:00:00]} 52. Bh3 {[%emt 0:00:00]} Kg7 {[%emt 0:00:00]} 53. g4 {[%emt 0:00:00]} hxg4 {[%emt 0:00:00]} 54. Bxg4 {[%emt 0:06:00]} Kh6 {[%emt 0:00:00]} 55. Kg3 {[%emt 0:00:00]} Bd7 {[%emt 0:00:00]} 56. Be2 {[%emt 0:07:00]} Be8 {[%emt 0:00:00]} 57. Bf3 {[%emt 0:00:00]} Bd7 {[%emt 0:00:00]} 58. Be2 {[%emt 0:00:00]} Be8 {[%emt 0:00:00]} 59. h5 {[%emt 0:08:30]} Bd7 {[%emt 0:30:53]} 60. Kh4 Be8 {[%emt 0:00:30]} 61. Bf3 {[%emt 0:01:00]} Bd7 {[%emt 0:00:30]} *

[Event "LEM Niedersachsen-A-Open 2025"]
[Site "Verden"]
[Date "2025.01.03"]
[Round "4.35"]
[White "Schulze, Tim"]
[Black "Kozik, Andreas"]
[Result "0-1"]
[ECO "A14"]
[WhiteElo "1804"]
[BlackElo "1868"]
[Annotator "NA RC"]
[PlyCount "46"]
[EventDate "2024.12.27"]
[EventType "swiss"]
[EventCountry "GER"]
[SourceTitle "playchess.com"]
[Source "ChessBase"]
[SourceQuality "1"]
[TimeControl "40/5400+30:1800+30"]

1. Nf3 {[%emt 0:00:04]} d5 {[%emt 0:00:05]} 2. g3 {[%emt 0:00:04]} Nf6 {[%emt 0:00:18]} 3. Bg2 {[%emt 0:00:02]} e6 {[%emt 0:00:14]} 4. O-O {[%emt 0:00:06]} Be7 {[%emt 0:00:18]} 5. c4 {[%emt 0:00:20]} O-O {[%emt 0:00:35]} 6. b3 {[%emt 0:01:29]} c6 {[%emt 0:01:55]} 7. Bb2 {[%emt 0:01:14]} b6 {[%emt 0:00:21]} 8. d3 {[%emt 0:03:30]} Nbd7 {[%emt 0:03:09]} 9. e4 {[%emt 0:00:19]} Bb7 {[%emt 0:05:54]} 10. e5 {[%emt 0:07:44]} Ne8 {[%emt 0:00:29]} 11. cxd5 {[%emt 0:01:15]} cxd5 {[%emt 0:00:55]} 12. Re1 {[%emt 0:01:49]} a5 {[%emt 0:04:56]} 13. Nc3 {[%emt 0:07:03]} Ba6 {[%emt 0:02:33]} 14. Nd4 {[%emt 0:09:38]} Rc8 {[%emt 0:03:20]} 15. Nxd5 {[%emt 0:05:58]} exd5 {[%emt 0:11:07]} 16. e6 {[%emt 0:05:53]} Nc5 {[%emt 0:17:52]} 17. exf7+ {[%emt 0:03:02]} Rxf7 {[%emt 0:00:24]} 18. Bh3 {[%emt 0:02:26]} Nc7 {[%emt 0:15:23]} 19. Nc6 {[%emt 0:08:36]} Qf8 {[%emt 0:00:58]} 20. Bxc8 {[%emt 0:39:58]} Bxc8 {[%emt 0:00:15]} 21. Nxe7+ {[%emt 0:00:00]} Rxe7 {[%emt 0:00:05]} 22. Qd2 {[%emt 0:00:00]} Bh3 {[%emt 0:02:50]} 23. Ba3 {[%emt 0:00:00]} Qf3 {[%emt 0:00:23]} 0-1

[Event "LEM Niedersachsen-A-Open 2025"]
[Site "Verden"]
[Date "2025.01.03"]
[Round "4.36"]
[White "Kiesel, Lara"]
[Black "Bisa, Gani"]
[Result "1-0"]
[ECO "D05"]
[WhiteElo "1825"]
[BlackElo "1885"]
[Annotator "NA RC"]
[PlyCount "123"]
[EventDate "2024.12.27"]
[EventType "swiss"]
[EventCountry "GER"]
[SourceTitle "playchess.com"]
[Source "ChessBase"]
[SourceQuality "1"]
[TimeControl "40/5400+30:1800+30"]

1. Nf3 {[%emt 0:00:09]} d5 {[%emt 0:00:08]} 2. e3 {[%emt 0:00:10]} c5 {[%emt 0:00:21]} 3. b3 {[%emt 0:00:07]} Nf6 {[%emt 0:00:15]} 4. Bb2 {[%emt 0:00:07]} e6 {[%emt 0:00:09]} 5. d4 {[%emt 0:00:35]} Nc6 {[%emt 0:00:27]} 6. Bd3 {[%emt 0:02:25]} g6 {[%emt 0:00:46]} 7. O-O {[%emt 0:00:44]} cxd4 {[%emt 0:00:18]} 8. exd4 {[%emt 0:00:20]} Bg7 {[%emt 0:00:12]} 9. a3 {[%emt 0:00:38]} O-O {[%emt 0:00:10]} 10. Nbd2 {[%emt 0:06:01]} Qc7 {[%emt 0:02:43]} 11. Re1 {[%emt 0:02:08]} Nd7 {[%emt 0:00:31]} 12. Qe2 {[%emt 0:19:43]} Qb6 {[%emt 0:04:18]} 13. Qe3 {[%emt 0:01:54]} Nf6 {[%emt 0:00:30]} 14. h3 {[%emt 0:03:41]} Qc7 {[%emt 0:01:40]} 15. Ne5 {[%emt 0:02:00]} Nd7 {[%emt 0:08:16]} 16. f4 {[%emt 0:00:31]} Re8 {[%emt 0:02:55]} 17. c4 {[%emt 0:13:14]} Nb6 {[%emt 0:04:54]} 18. c5 {[%emt 0:03:42]} Nd7 {[%emt 0:00:12]} 19. b4 {[%emt 0:01:08]} a6 {[%emt 0:00:21]} 20. Bc3 {[%emt 0:02:28]} b6 {[%emt 0:00:20]} 21. a4 {[%emt 0:04:48]} Bb7 {[%emt 0:01:48]} 22. Nxc6 {[%emt 0:03:31]} Bxc6 {[%emt 0:03:52]} 23. b5 {[%emt 0:02:28]} axb5 {[%emt 0:00:08]} 24. axb5 {[%emt 0:01:19]} Rxa1 {[%emt 0:00:08]} 25. Rxa1 {[%emt 0:03:09]} Ba8 {[%emt 0:00:26]} 26. c6 {[%emt 0:00:59]} Nc5 {[%emt 0:02:03]} 27. Bc2 {[%emt 0:01:50]} Ne4 {[%emt 0:02:19]} 28. Nxe4 {[%emt 0:00:30]} dxe4 {[%emt 0:00:15]} 29. Bxe4 {[%emt 0:00:26]} Rd8 {[%emt 0:01:03]} 30. Rd1 {[%emt 0:01:24]} e5 {[%emt 0:01:17]} 31. fxe5 {[%emt 0:01:32]} Bxe5 {[%emt 0:00:36]} 32. d5 {[%emt 0:00:40]} Bd6 {[%emt 0:03:25]} 33. Kh1 {[%emt 0:03:32]} Re8 {[%emt 0:01:43]} 34. Qd3 {[%emt 0:01:48]} Qe7 {[%emt 0:00:56]} 35. Bf3 {[%emt 0:01:28]} Qg5 {[%emt 0:00:30]} 36. Bd4 {[%emt 0:04:02]} Qg3 {[%emt 0:02:18]} 37. Bg1 {[%emt 0:00:18]} Re1 {[%emt 0:00:50]} 38. Rxe1 {[%emt 0:00:42]} Qxe1 {[%emt 0:00:02]} 39. Qe2 {[%emt 0:00:30]} Qa1 {[%emt 0:00:25]} 40. Qd1 {[%emt 0:05:15]} Qe5 {[%emt 0:02:26]} 41. Qd4 {[%emt 0:35:17]} Qe7 {[%emt 0:33:20]} 42. Qxb6 {[%emt 0:02:54]} Kg7 {[%emt 0:02:00]} 43. Qa7 {[%emt 0:00:00]} Qe1 {[%emt 0:00:00]} 44. Qd4+ {[%emt 0:00:00]} Be5 {[%emt 0:00:00]} 45. Qe3 {[%emt 0:00:00]} Qa1 {[%emt 0:00:00]} 46. b6 {[%emt 0:00:00]} f6 {[%emt 0:00:00]} 47. b7 {[%emt 0:00:00]} Bxb7 {[%emt 0:00:00]} 48. cxb7 {[%emt 0:00:00]} Qb1 {[%emt 0:00:00]} 49. Qb6 {[%emt 0:00:00]} Qxb6 {[%emt 0:00:00]} 50. Bxb6 {[%emt 0:00:00]} Bb8 {[%emt 0:00:00]} 51. Kg1 {[%emt 0:00:00]} Kf7 {[%emt 0:00:00]} 52. Kf2 {[%emt 0:00:00]} Ke7 {[%emt 0:00:00]} 53. Ke3 {[%emt 0:00:00]} Kd6 {[%emt 0:00:00]} 54. Kd4 {[%emt 0:00:00]} f5 {[%emt 0:00:00]} 55. Bc5+ {[%emt 0:00:00]} Kd7 {[%emt 0:00:00]} 56. d6 {[%emt 0:00:00]} g5 {[%emt 0:00:00]} 57. g4 {[%emt 0:00:00]} fxg4 {[%emt 0:00:00]} 58. hxg4 {[%emt 0:00:00]} h6 {[%emt 0:00:00]} 59. Kc4 {[%emt 0:00:00]} Kd8 {[%emt 0:00:00]} 60. Bc6 {[%emt 0:00:00]} h5 {[%emt 0:00:00]} 61. gxh5 {[%emt 0:00:00]} g4 {[%emt 0:00:00]} 62. h6 {[%emt 0:00:00]} 1-0